bitfinex/quotes_SOLUSD_20251116
["timestamp","ask_amount","ask_price","bid_price","bid_amount"]
[1763324468270,2.46732063,137.6,137.55,2.46732063]
[1763324468476,3.18732063,137.6,137.56,9.78882769]
[1763324468659,0.72,137.59,137.56,9.78882769]
[1763324468979,0.72,137.59,137.55,2.46732063]
[1763324468980,0.72,137.59,137.55,13.64463055]
[1763324469151,0.72,137.59,137.55,9.78882769]
[1763324469881,4.57580286,137.59,137.55,9.78882769]
[1763324470083,3.85580286,137.58,137.54,9.78882769]
[1763324470285,4.57580286,137.58,137.54,9.78882769]
[1763324470481,0.72,137.57,137.54,9.78882769]
[1763324470861,3.85580286,137.59,137.54,3.85580286]
[1763324471058,0.72,137.58,137.55,3.85580286]
[1763324471373,23.3712,137.6,137.56,13.64463055]
[1763324471580,0.72,137.59,137.56,13.64463055]
[1763324474176,0.72,137.59,137.58,9.78882769]
[1763324474378,0.72,137.62,137.58,13.64463055]
[1763324474565,103.2,137.63,137.61,3.85580286]
[1763324474973,103.2,137.63,137.62,13.64463055]
[1763324474974,103.92,137.63,137.62,13.64463055]
[1763324475360,103.92,137.63,137.62,9.78882769]
[1763324476282,103.92,137.63,137.59,3.85580286]
[1763324476467,0.71,137.62,137.6,13.64463055]
[1763324478285,0.71,137.62,137.56,9.78882769]
[1763324478464,4.56580286,137.62,137.57,3.85580286]
[1763324478786,4.56580286,137.62,137.58,9.78882769]
[1763324478991,0.71,137.61,137.58,9.78882769]
[1763324479786,0.71,137.61,137.58,3.85580286]
[1763324480991,126.5612,137.63,137.6,3.85580286]
[1763324481194,0.71,137.62,137.6,3.85580286]
[1763324481691,103.2,137.63,137.62,9.78882769]
[1763324481893,103.2,137.63,137.62,13.64463055]
[1763324482480,0.71,137.64,137.62,13.64463055]
[1763324482796,0.71,137.65,137.64,9.78882769]
[1763324482984,22.8512,137.67,137.64,9.78882769]
[1763324483184,3.85580286,137.66,137.59,0.71]
[1763324483384,4.56580286,137.66,137.61,3.85580286]
[1763324483580,0.71,137.65,137.61,3.85580286]
[1763324484396,0.91,137.67,137.65,9.78882769]
[1763324484783,0.71,137.66,137.65,9.78882769]
[1763324485581,0.71,137.66,137.63,3.85580286]
[1763324486579,0.71,137.66,137.65,9.78882769]
[1763324487585,0.2,137.67,137.65,3.85580286]
[1763324488201,0.2,137.67,137.66,13.64463055]
[1763324488385,0.91,137.67,137.66,13.64463055]
[1763324488895,0.91,137.67,137.66,9.78882769]
[1763324492384,4.76580286,137.67,137.61,13.64463055]
[1763324492584,4.55580286,137.66,137.61,13.64463055]
[1763324493008,0.7,137.65,137.61,14.35463055]
[1763324493320,0.7,137.65,137.62,3.85580286]
[1763324496994,0.7,137.65,137.64,9.78882769]
[1763324497904,0.9,137.67,137.63,9.78882769]
[1763324498104,0.9,137.67,137.65,9.78882769]
[1763324498305,0.7,137.66,137.65,9.78882769]
[1763324499109,0.2,137.67,137.65,9.78882769]
[1763324499310,0.9,137.67,137.65,9.78882769]
[1763324499513,0.9,137.67,137.65,13.64463055]
[1763324499693,0.9,137.67,137.65,9.78882769]
[1763324500022,0.9,137.67,137.65,13.64463055]
[1763324500514,0.9,137.67,137.65,9.78882769]
[1763324504519,0.9,137.67,137.65,3.85580286]
[1763324504716,0.2,137.67,137.65,3.85580286]
[1763324505018,0.2,137.67,137.66,14.35463055]
[1763324505701,0.2,137.67,137.66,37.00583055]
[1763324506494,0.2,137.67,137.66,36.29583055]
[1763324506915,0.9,137.67,137.66,32.44002769]
[1763324512005,0.9,137.67,137.66,9.78882769]
[1763324515143,0.9,137.67,137.64,3.85580286]
[1763324515432,0.9,137.67,137.6,22.6512]
[1763324515433,0.7,137.66,137.65,9.78882769]
[1763324519270,22.6512,137.65,137.62,9.78882769]
[1763324519460,26.50700286,137.65,137.62,9.78882769]
[1763324519756,0.7,137.64,137.61,9.78882769]
[1763324519958,0.7,137.64,137.61,13.64463055]
[1763324520761,0.7,137.64,137.61,9.78882769]
[1763324521052,0.7,137.64,137.59,14.36463055]
[1763324521750,0.7,137.64,137.61,13.64463055]
[1763324521935,0.7,137.64,137.62,9.78882769]
[1763324522853,0.7,137.64,137.58,0.72]
[1763324522854,103.2,137.63,137.58,0.72]
[1763324523046,103.2,137.63,137.58,3.85580286]
[1763324523353,0.67,137.62,137.59,9.78882769]
[1763324525143,0.67,137.62,137.57,4.57580286]
[1763324526154,0.67,137.62,137.56,9.78882769]
[1763324526155,4.52580286,137.62,137.56,13.64463055]
[1763324526438,4.52580286,137.62,137.58,9.78882769]
[1763324526655,0.67,137.61,137.58,9.78882769]
[1763324527539,0.67,137.61,137.57,9.78882769]
[1763324527742,4.52580286,137.61,137.57,9.78882769]
[1763324528055,4.52580286,137.61,137.56,9.78882769]
[1763324528256,0.67,137.6,137.56,14.36463055]
[1763324528441,0.67,137.6,137.56,13.64463055]
[1763324528641,0.67,137.6,137.55,3.85580286]
[1763324528841,0.67,137.6,137.56,9.78882769]
[1763324529746,2.46759002,137.58,137.54,9.78882769]
[1763324530245,0.67,137.57,137.52,3.28759002]
[1763324530566,3.13759002,137.57,137.53,9.78882769]
[1763324530967,0.67,137.56,137.53,9.78882769]
[1763324531341,103.87,137.59,137.54,3.18759002]
[1763324531563,103.87,137.59,137.56,12.25641771]
[1763324531564,103.2,137.59,137.56,12.25641771]
[1763324531771,103.87,137.59,137.56,12.25641771]
[1763324532066,103.2,137.59,137.58,9.78882769]
[1763324532461,0.67,137.62,137.58,12.97641771]
[1763324532660,103.2,137.64,137.58,12.25641771]
[1763324532847,103.2,137.64,137.61,9.78882769]
[1763324533470,103.87,137.64,137.61,9.78882769]
[1763324534172,0.67,137.63,137.59,2.46759002]
[1763324534659,0.67,137.63,137.59,3.18759002]
[1763324534866,0.67,137.63,137.61,9.78882769]
[1763324535189,0.67,137.65,137.61,12.25641771]
[1763324535375,0.67,137.65,137.61,12.97641771]
[1763324536556,0.67,137.65,137.61,9.78882769]
[1763324536761,2.46759002,137.64,137.59,9.78882769]
[1763324537069,0.72,137.63,137.61,9.78882769]
[1763324538072,2.46759002,137.62,137.57,2.46759002]
[1763324538255,2.46759002,137.62,137.58,9.78882769]
[1763324538464,0.72,137.61,137.58,9.78882769]
[1763324538765,3.18759002,137.61,137.56,12.25641771]
[1763324538988,3.18759002,137.61,137.56,9.78882769]
[1763324538989,2.46759002,137.6,137.56,9.78882769]
[1763324539164,2.46759002,137.59,137.56,9.78882769]
[1763324539362,3.11759002,137.59,137.56,9.78882769]
[1763324539663,0.65,137.58,137.55,9.78882769]
[1763324540983,103.2,137.61,137.56,3.16759002]
[1763324540984,0.65,137.6,137.56,3.16759002]
[1763324541485,0.65,137.6,137.54,34.90761771]
[1763324541486,2.46759002,137.59,137.54,34.90761771]
[1763324541991,128.96879002,137.58,137.54,9.78882769]
[1763324542458,0.65,137.57,137.54,9.78882769]
[1763324549388,0.65,137.57,137.52,0.8]
[1763324549590,0.65,137.57,137.54,9.78882769]
[1763324550492,0.65,137.57,137.54,2.46759002]
[1763324550695,0.65,137.57,137.55,9.78882769]
[1763324552077,103.2,137.58,137.54,2.46759002]
[1763324552283,103.2,137.58,137.57,9.78882769]
[1763324553279,0.67,137.6,137.55,2.46759002]
[1763324553481,0.67,137.6,137.57,9.78882769]
[1763324554582,3.13759002,137.6,137.55,2.46759002]
[1763324554778,0.67,137.59,137.54,12.25641771]
[1763324555300,0.67,137.59,137.54,12.93641771]
[1763324556298,0.67,137.59,137.55,3.14759002]
[1763324556478,0.67,137.59,137.55,2.46759002]
[1763324557087,0.67,137.59,137.55,3.14759002]
[1763324557799,3.13759002,137.59,137.54,12.25641771]
[1763324558096,3.13759002,137.59,137.54,12.93641771]
[1763324558287,0.67,137.58,137.54,12.93641771]
[1763324560796,0.67,137.58,137.54,2.46759002]
[1763324561003,0.67,137.58,137.54,3.14759002]
[1763324561394,0.67,137.58,137.56,9.78882769]
[1763324561704,0.67,137.58,137.54,3.14759002]
[1763324562299,0.67,137.58,137.54,0.68]
[1763324562616,0.67,137.58,137.54,3.14759002]
[1763324564786,0.67,137.58,137.52,9.88882769]
[1763324565106,2.46759002,137.56,137.52,0.1]
[1763324565314,0.67,137.55,137.52,0.1]
[1763324567910,106.33759002,137.55,137.52,0.1]
[1763324568389,0.67,137.54,137.52,0.1]
[1763324569520,103.2,137.55,137.52,0.1]
[1763324569690,103.87,137.55,137.53,9.78882769]
[1763324570021,103.87,137.55,137.52,0.1]
[1763324570313,0.67,137.54,137.52,0.1]
[1763324573227,103.2,137.55,137.52,0.1]
[1763324573392,103.87,137.55,137.52,3.24759002]
[1763324574007,103.87,137.55,137.52,2.56759002]
[1763324574517,103.2,137.55,137.52,2.56759002]
[1763324574705,103.87,137.55,137.52,2.56759002]
[1763324578021,0.67,137.54,137.52,2.56759002]
[1763324578822,103.2,137.55,137.53,9.78882769]
[1763324579002,103.87,137.55,137.53,9.78882769]
[1763324580299,103.2,137.55,137.53,12.96641771]
[1763324580607,103.2,137.55,137.54,12.25641771]
[1763324581213,103.2,137.55,137.54,9.78882769]
[1763324582626,103.2,137.55,137.54,12.25641771]
[1763324583012,103.2,137.55,137.54,9.78882769]
[1763324584631,0.72,137.57,137.55,9.78882769]
[1763324584818,0.72,137.59,137.56,2.46759002]
[1763324585127,103.2,137.61,137.57,12.25641771]
[1763324585329,0.72,137.59,137.57,12.25641771]
[1763324586612,103.2,137.61,137.57,12.25641771]
[1763324586931,103.2,137.61,137.59,9.78882769]
[1763324587113,2.46759002,137.63,137.59,9.78882769]
[1763324587114,0.72,137.64,137.61,9.78882769]
[1763324587432,23.3712,137.64,137.61,2.46759002]
[1763324587620,0.72,137.66,137.63,9.78882769]
[1763324587932,0.72,137.65,137.63,9.78882769]
[1763324588126,0.92,137.67,137.65,9.78882769]
[1763324589130,0.2,137.67,137.65,2.46759002]
[1763324589334,0.92,137.67,137.64,12.25641771]
[1763324590737,0.92,137.67,137.64,9.78882769]
[1763324590921,0.92,137.67,137.64,13.63985939]
[1763324592420,0.92,137.67,137.64,14.34985939]
[1763324593021,0.92,137.67,137.66,13.63985939]
[1763324593022,0.2,137.67,137.66,13.63985939]
[1763324593242,0.2,137.67,137.66,14.34985939]
[1763324596648,0.2,137.69,137.66,21.61413368]
[1763324596824,0.2,137.69,137.68,13.63985939]
[1763324597337,0.2,137.69,137.68,14.30985939]
[1763324598738,0.2,137.69,137.68,17.22074975]
[1763324604731,0.2,137.69,137.68,21.07178145]
[1763324605456,0.2,137.69,137.68,17.22074975]
[1763324607243,0.2,137.72,137.68,17.22074975]
[1763324607244,0.2,137.72,137.69,9.78882769]
[1763324607450,0.2,137.72,137.71,13.63985939]
[1763324607822,0.2,137.72,137.71,17.21990267]
[1763324610968,0.2,137.72,137.71,12.69887097]
[1763324611251,0.2,137.72,137.71,17.25990267]
[1763324611652,0.2,137.72,137.71,16.54990267]
[1763324612239,0.2,137.72,137.71,17.25990267]
[1763324613147,0.2,137.72,137.71,24.52153944]
[1763324613839,0.2,137.72,137.71,17.25990267]
[1763324614666,0.2,137.72,137.71,13.40887097]
[1763324614839,0.2,137.72,137.71,17.25990267]
[1763324615039,0.89,137.72,137.71,16.54990267]
[1763324615239,0.89,137.72,137.71,12.69887097]
[1763324615444,0.89,137.72,137.71,16.54990267]
[1763324616157,0.2,137.72,137.71,16.54990267]
[1763324620053,0.2,137.72,137.71,17.25990267]
[1763324621754,0.2,137.72,137.71,16.54990267]
[1763324622060,0.89,137.72,137.71,16.54990267]
[1763324622744,0.2,137.72,137.71,16.54990267]
[1763324623351,0.89,137.72,137.71,16.54990267]
[1763324627354,0.89,137.72,137.71,13.63985939]
[1763324628461,0.89,137.72,137.71,9.78882769]
[1763324628766,0.89,137.72,137.7,9.78882769]
[1763324628937,0.69,137.71,137.68,3.8510317]
[1763324629158,0.69,137.71,137.69,9.78882769]
[1763324630087,0.69,137.71,137.67,3.8510317]
[1763324630290,3.8510317,137.7,137.66,9.78882769]
[1763324630584,125.8512,137.7,137.66,13.63985939]
[1763324630759,0.69,137.69,137.66,13.63985939]
[1763324631484,0.69,137.69,137.64,9.78882769]
[1763324631690,0.69,137.69,137.66,3.8510317]
[1763324636087,0.69,137.69,137.68,9.78882769]
[1763324637081,103.2,137.7,137.68,13.63985939]
[1763324637274,103.89,137.7,137.68,13.63985939]
[1763324637474,0.69,137.69,137.68,13.63985939]
[1763324640188,103.2,137.7,137.68,14.35985939]
[1763324640394,23.5412,137.72,137.69,3.8510317]
[1763324640600,0.69,137.71,137.7,9.78882769]
[1763324645182,0.69,137.71,137.69,9.78882769]
[1763324650382,0.69,137.71,137.69,3.8510317]
[1763324651008,0.69,137.71,137.69,2.46276871]
[1763324651311,0.2,137.72,137.71,9.78882769]
[1763324651486,0.2,137.72,137.71,12.2515964]
[1763324651801,0.2,137.72,137.71,12.9715964]
[1763324653492,0.2,137.74,137.73,32.44002769]
[1763324653687,0.2,137.74,137.73,34.9027964]
[1763324653876,0.2,137.75,137.73,35.6227964]
[1763324654079,0.2,137.75,137.74,12.9715964]
[1763324654504,0.2,137.75,137.74,15.88079309]
[1763324655120,0.2,137.78,137.74,25.60361697]
[1763324655287,0.2,137.78,137.77,12.2515964]
[1763324655783,0.2,137.78,137.77,12.9715964]
[1763324656515,0.23481322,137.8,137.79,12.2515964]
[1763324656890,0.23481322,137.8,137.79,9.78882769]
[1763324656891,0.90481322,137.8,137.79,9.78882769]
[1763324657093,0.23481322,137.8,137.79,12.2515964]
[1763324657392,0.90481322,137.8,137.79,9.78882769]
[1763324659921,0.90481322,137.8,137.78,9.78882769]
[1763324660125,0.67,137.79,137.78,9.78882769]
[1763324660631,0.67,137.79,137.77,9.78882769]
[1763324662399,0.23481322,137.8,137.78,2.46276871]
[1763324662600,0.90481322,137.8,137.79,9.78882769]
[1763324663095,0.90481322,137.8,137.73,3.62983159]
[1763324663304,0.67,137.79,137.76,9.78882769]
[1763324668226,0.67,137.79,137.76,12.2515964]
[1763324668429,0.67,137.79,137.77,2.46276871]
[1763324668626,0.23481322,137.8,137.78,2.46276871]
[1763324668833,0.23481322,137.8,137.79,12.2515964]
[1763324669229,0.90481322,137.8,137.79,12.2515964]
[1763324669426,0.23481322,137.8,137.79,12.2515964]
[1763324670837,0.23481322,137.8,137.79,12.9315964]
[1763324672233,0.23481322,137.8,137.79,9.78882769]
[1763324672434,0.23481322,137.8,137.79,12.2515964]
[1763324672644,0.23481322,137.8,137.79,12.9315964]
[1763324673239,0.23481322,137.8,137.79,12.2515964]
[1763324673444,0.23481322,137.8,137.79,12.9315964]
[1763324674327,0.2,137.81,137.8,9.78882769]
[1763324674632,0.2,137.81,137.8,12.9315964]
[1763324676673,0.2,137.81,137.8,20.18849044]
[1763324676824,0.2,137.83,137.8,20.18849044]
[1763324677025,0.2,137.83,137.82,12.2515964]
[1763324677542,0.2,137.83,137.82,12.9315964]
[1763324679752,0.2,137.83,137.82,34.73946904]
[1763324680265,0.2,137.83,137.82,31.59670033]
[1763324680561,0.2,137.83,137.82,12.2515964]
[1763324681165,0.2,137.83,137.82,12.9315964]
[1763324681531,0.2,137.86,137.83,9.78882769]
[1763324681738,0.2,137.86,137.85,34.9027964]
[1763324682146,0.66,137.93,137.86,9.78882769]
[1763324682356,0.66,137.92,137.91,12.2515964]
[1763324683960,0.66,137.92,137.85,45.10431784]
[1763324684160,25.11396871,137.91,137.88,9.78882769]
[1763324684457,25.11396871,137.91,137.87,9.78882769]
[1763324684666,0.66,137.9,137.87,9.78882769]
[1763324685049,0.66,137.9,137.85,2.46276871]
[1763324685250,0.66,137.9,137.86,9.78882769]
[1763324685766,3.12276871,137.9,137.86,9.78882769]
[1763324686152,0.66,137.89,137.86,9.78882769]
[1763324686349,0.66,137.89,137.86,2.46276871]
[1763324686964,0.66,137.89,137.86,9.78882769]
[1763324687350,0.66,137.89,137.86,2.46276871]
[1763324688347,0.66,137.89,137.86,9.78882769]
[1763324688966,0.66,137.89,137.86,12.2515964]
[1763324690968,2.46276871,137.87,137.82,2.46276871]
[1763324691163,2.46276871,137.87,137.83,9.78882769]
[1763324691462,0.66,137.86,137.83,9.78882769]
[1763324691645,0.66,137.86,137.83,12.2515964]
[1763324692770,0.66,137.86,137.83,15.64068861]
[1763324694545,0.66,137.86,137.83,37.45014664]
[1763324695247,0.66,137.86,137.83,9.78882769]
[1763324695666,125.8512,137.85,137.81,9.78882769]
[1763324696048,0.66,137.84,137.81,9.78882769]
[1763324697969,0.66,137.84,137.81,5.85186092]
[1763324698352,0.66,137.84,137.81,9.78882769]
[1763324700560,5.85186092,137.82,137.79,9.78882769]
[1763324700755,0.7,137.81,137.79,9.78882769]
[1763324701278,6.55186092,137.81,137.77,9.78882769]
[1763324701583,0.7,137.81,137.77,9.78882769]
[1763324701779,0.7,137.8,137.77,9.78882769]
[1763324702399,109.05186092,137.79,137.76,9.78882769]
[1763324702881,109.05186092,137.79,137.75,21.81897523]
[1763324702882,6.55186092,137.78,137.72,5.85186092]
[1763324703046,6.55186092,137.78,137.72,27.67083615]
[1763324703249,0.7,137.77,137.74,9.78882769]
[1763324705118,0.7,137.77,137.73,9.78882769]
[1763324705617,22.6512,137.76,137.73,9.78882769]
[1763324705789,5.85186092,137.75,137.72,9.78882769]
[1763324706092,6.55186092,137.75,137.71,9.78882769]
[1763324706298,0.7,137.74,137.71,9.78882769]
[1763324706478,6.55186092,137.74,137.71,9.78882769]
[1763324706803,0.7,137.74,137.71,9.78882769]
[1763324707101,0.7,137.73,137.71,9.78882769]
[1763324709892,22.6512,137.75,137.72,0.65]
[1763324710081,0.7,137.74,137.69,9.78882769]
[1763324710282,103.9,137.74,137.69,15.64068861]
[1763324710691,0.7,137.73,137.69,15.64068861]
[1763324711004,0.7,137.73,137.69,9.78882769]
[1763324711794,10.90905485,137.73,137.69,9.78882769]
[1763324712182,0.7,137.72,137.69,9.78882769]
[1763324713388,4.54848526,137.72,137.69,9.78882769]
[1763324713587,129.69968526,137.71,137.67,9.98882769]
[1763324713792,130.39968526,137.71,137.67,9.98882769]
[1763324713993,0.7,137.7,137.67,9.98882769]
[1763324714592,0.7,137.7,137.67,13.83731295]
[1763324715109,0.7,137.7,137.67,9.98882769]
[1763324716388,125.2012,137.71,137.68,0.65]
[1763324716593,51.99999999,137.76,137.7,7.69697052]
[1763324716793,36.69279944,137.93,137.7,7.69697052]
[1763324716794,0.7,137.87,137.79,9.78882769]
[1763324716994,0.7,137.87,137.86,3.84848526]
[1763324717196,0.7,137.87,137.86,13.63731295]
[1763324717395,3.84848526,137.92,137.86,13.63731295]
[1763324717396,0.7,137.89,137.87,9.78882769]
[1763324717595,0.7,137.93,137.88,3.84848526]
[1763324717797,0.7,137.92,137.89,3.84848526]
[1763324718001,0.7,137.92,137.9,13.63731295]
[1763324718201,0.2,137.94,137.92,9.78882769]
[1763324718516,0.2,137.94,137.93,13.63731295]
[1763324718806,0.2,137.94,137.93,45.40098605]
[1763324719010,0.2,137.94,137.93,23.90688225]
[1763324719714,0.2,137.94,137.93,13.73731295]
[1763324719906,0.9,137.94,137.93,9.78882769]
[1763324721117,0.9,137.94,137.93,19.95839699]
[1763324721411,0.2,137.94,137.93,9.78882769]
[1763324721611,0.2,137.94,137.93,19.95839699]
[1763324724911,0.1,138.0,137.94,9.78882769]
[1763324725101,0.1,138.0,137.99,19.95839699]
[1763324726003,0.1,138.0,137.99,9.78882769]
[1763324726206,0.8,138.0,137.99,9.78882769]
[1763324726413,0.1,138.0,137.99,19.95839699]
[1763324727915,0.1,138.0,137.99,9.78882769]
[1763324728114,0.1,138.0,137.99,30.12796629]
[1763324731508,0.66,138.11,138.03,32.44002769]
[1763324731729,0.66,138.13,138.11,9.78882769]
[1763324732106,0.66,138.13,138.12,9.78882769]
[1763324732302,0.1,138.14,138.13,9.78882769]
[1763324732505,0.1,138.14,138.13,19.95839699]
[1763324733704,0.1,138.14,138.13,9.78882769]
[1763324733905,0.1,138.14,138.13,19.95839699]
[1763324734312,0.1,138.14,138.13,42.60959699]
[1763324735920,0.1,138.14,138.13,52.77916629]
[1763324736733,0.76,138.14,138.13,19.95839699]
[1763324736936,0.76,138.14,138.13,9.78882769]
[1763324737233,0.1,138.14,138.13,9.78882769]
[1763324738229,0.76,138.14,138.13,9.78882769]
[1763324738534,0.1,138.14,138.13,9.78882769]
[1763324739537,0.1,138.14,138.13,19.95839699]
[1763324739713,0.1,138.14,138.13,9.78882769]
[1763324739914,0.1,138.14,138.13,19.95839699]
[1763324741819,0.76,138.14,138.13,9.78882769]
[1763324743138,10.9295693,138.14,138.05,0.7]
[1763324743438,10.1695693,138.13,138.08,21.76989223]
[1763324743744,10.8295693,138.13,138.08,10.1695693]
[1763324744039,0.66,138.12,138.08,10.1695693]
[1763324744212,0.66,138.12,138.09,10.1695693]
[1763324745128,0.66,138.12,138.1,9.78882769]
[1763324745644,0.66,138.12,138.1,19.95839699]
[1763324746351,0.66,138.12,138.08,9.78882769]
[1763324746525,0.66,138.12,138.11,9.78882769]
[1763324747965,0.66,138.12,138.1,9.78882769]
[1763324749032,0.66,138.12,138.07,9.78882769]
[1763324749248,0.66,138.12,138.07,19.95839699]
[1763324749938,0.66,138.12,138.0,10.1695693]
[1763324749939,10.1695693,138.11,138.0,10.1695693]
[1763324750134,10.1695693,138.11,137.97,1.99999999]
[1763324750135,10.1695693,138.08,137.95,40.80893092]
[1763324750352,23.3112,138.1,138.05,10.1695693]
[1763324750560,10.1695693,138.07,138.01,10.1695693]
[1763324750745,10.1695693,138.06,138.02,9.78882769]
[1763324751048,10.1695693,138.04,137.99,10.1695693]
[1763324751365,10.1695693,138.04,138.0,9.78882769]
[1763324751564,0.66,138.03,138.0,9.78882769]
[1763324751737,0.66,138.04,138.01,10.1695693]
[1763324751941,0.66,138.04,138.02,9.78882769]
[1763324752866,0.66,138.04,137.98,0.7]
[1763324752867,10.1695693,138.03,137.98,10.1695693]
[1763324753176,10.1695693,138.03,137.97,9.78882769]
[1763324753467,10.1695693,138.01,137.97,9.78882769]
[1763324753961,0.66,138.0,137.96,10.1695693]
[1763324754150,0.66,138.0,137.95,9.78882769]
[1763324754340,0.66,138.0,137.96,10.1695693]
[1763324756059,0.66,138.0,137.98,9.78882769]
[1763324756842,0.66,138.0,137.94,0.7]
[1763324756843,10.8295693,138.0,137.95,10.1695693]
[1763324757257,0.66,137.99,137.95,10.1695693]
[1763324757664,0.66,137.99,137.95,9.78882769]
[1763324757970,0.66,137.99,137.96,9.78882769]
[1763324760061,0.66,137.99,137.94,10.1695693]
[1763324760246,0.66,137.99,137.95,9.78882769]
[1763324760564,0.66,137.99,137.96,9.78882769]
[1763324760881,10.1695693,138.04,137.96,32.44002769]
[1763324761166,0.65,137.99,137.98,9.78882769]
[1763324761367,10.1695693,138.03,137.98,19.95839699]
[1763324761555,0.65,138.06,138.01,9.78882769]
[1763324761742,10.1695693,138.06,138.01,19.95839699]
[1763324761943,10.8195693,138.05,138.01,9.78882769]
[1763324762462,0.65,138.04,138.01,9.78882769]
[1763324762844,32.8207693,138.02,137.93,9.78882769]
[1763324763045,10.1695693,138.01,137.96,9.78882769]
[1763324763252,10.1695693,138.0,137.96,9.78882769]
[1763324763459,10.1695693,138.0,137.87,0.66]
[1763324763460,10.1695693,137.97,137.87,0.66]
[1763324763770,10.1695693,137.92,137.87,10.1695693]
[1763324764150,0.65,137.94,137.9,10.1695693]
[1763324764360,33.4707693,137.96,137.91,9.78882769]
[1763324764559,0.65,137.95,137.91,19.95839699]
[1763324764751,22.6512,137.97,137.95,9.78882769]
[1763324764951,10.1695693,137.97,137.95,9.78882769]
[1763324765151,10.1695693,137.96,137.92,9.78882769]
[1763324765648,10.8195693,137.96,137.92,9.78882769]
[1763324765844,0.65,137.96,137.92,9.78882769]
[1763324766069,10.1695693,137.95,137.91,9.78882769]
[1763324766460,0.65,137.94,137.91,9.78882769]
[1763324767568,10.8195693,137.94,137.91,9.78882769]
[1763324767779,22.6512,137.92,137.89,9.78882769]
[1763324768164,23.3012,137.92,137.89,9.78882769]
[1763324768359,10.8195693,137.91,137.87,9.78882769]
[1763324768760,10.1695693,137.91,137.87,9.78882769]
[1763324769075,51.99999999,137.99,137.89,9.78882769]
[1763324769264,23.3012,137.93,137.89,19.95839699]
[1763324769581,0.65,137.92,137.89,9.78882769]
[1763324769959,22.6512,137.93,137.89,20.61839699]
[1763324770275,23.3012,137.93,137.89,19.95839699]
[1763324771165,0.65,137.93,137.89,19.95839699]
[1763324771474,0.65,137.93,137.91,9.78882769]
[1763324771774,10.8195693,137.92,137.86,20.15839699]
[1763324772193,10.8195693,137.91,137.86,9.98882769]
[1763324772481,10.1695693,137.89,137.86,0.2]
[1763324772865,0.65,137.88,137.86,0.2]
[1763324774980,23.3012,137.92,137.87,9.78882769]
[1763324775179,23.3012,137.92,137.87,15.63974402]
[1763324775180,0.65,137.91,137.87,15.63974402]
[1763324776386,5.85091633,137.93,137.87,16.29974402]
[1763324776563,0.72,137.91,137.87,15.63974402]
[1763324778673,5.85091633,137.92,137.87,16.29974402]
[1763324778861,0.72,137.92,137.87,16.29974402]
[1763324779299,28.50211633,137.93,137.86,0.2]
[1763324779300,22.6512,137.93,137.89,9.78882769]
[1763324779504,22.6512,137.93,137.89,10.44882769]
[1763324779720,23.3712,137.93,137.89,9.78882769]
[1763324779881,0.72,137.92,137.87,6.51091633]
[1763324780291,28.50211633,137.93,137.89,9.78882769]
[1763324780500,29.22211633,137.93,137.89,9.78882769]
[1763324780701,28.50211633,137.93,137.89,9.78882769]
[1763324780982,0.72,137.92,137.89,9.78882769]
[1763324782479,0.72,137.92,137.87,0.66]
[1763324785093,5.85091633,137.94,137.88,9.78882769]
[1763324785302,22.6512,137.94,137.91,9.78882769]
[1763324785513,6.57091633,137.96,137.91,15.63974402]
[1763324785693,0.72,137.95,137.91,16.29974402]
[1763324786087,0.72,137.97,137.93,15.63974402]
[1763324786787,0.72,137.97,137.93,9.78882769]
[1763324788813,0.72,137.97,137.92,6.51091633]
[1763324788814,0.72,137.97,137.92,5.85091633]
[1763324789107,6.57091633,137.99,137.95,9.78882769]
[1763324789289,0.72,137.99,137.95,15.63974402]
[1763324790524,103.2,138.02,137.99,9.78882769]
[1763324790709,103.2,138.02,138.01,9.78882769]
[1763324790921,0.71,138.01,137.95,23.3312]